bitfinex/quotes_SOLUSD_20251116
["timestamp","ask_amount","ask_price","bid_price","bid_amount"]
[1763282737478,0.2,142.09,142.08,45.65501707]
[1763282737684,0.2,142.09,142.08,44.97501707]
[1763282738411,0.2,142.09,142.08,45.65501707]
[1763282738608,0.2,142.09,142.08,44.97501707]
[1763282740307,0.2,142.09,142.08,45.65501707]
[1763282740485,0.2,142.09,142.08,42.97670596]
[1763282740687,0.2,142.09,142.08,48.33332818]
[1763282741697,0.2,142.1,142.09,9.78882769]
[1763282741903,0.2,142.1,142.09,20.18493174]
[1763282742305,0.2,142.1,142.09,23.00292462]
[1763282744586,0.2,142.1,142.09,22.32292462]
[1763282747629,0.2,142.1,142.09,23.03292462]
[1763282749343,0.88,142.12,142.11,22.6512]
[1763282749344,0.2,142.12,142.11,22.6512]
[1763282749631,0.2,142.14,142.12,9.78882769]
[1763282749831,0.2,142.14,142.13,42.15415108]
[1763282750132,0.2,142.14,142.13,42.86415108]
[1763282750619,0.2,142.14,142.13,44.97135007]
[1763282750805,0.88,142.14,142.13,44.97135007]
[1763282751802,0.88,142.14,142.13,42.29303896]
[1763282763072,0.88,142.14,142.13,44.97135007]
[1763282764284,0.88,142.14,142.13,42.29303896]
[1763282764674,0.88,142.14,142.13,2.81719899]
[1763282765650,0.88,142.14,142.13,9.85301127]
[1763282772997,0.88,142.14,142.13,2.81719899]
[1763282773304,0.88,142.14,142.13,9.85301127]
[1763282776191,0.88,142.14,142.13,2.81719899]
[1763282776582,2.59341747,142.14,142.07,1.71341747]
[1763282776897,1.71341747,142.1,142.07,7.03878369]
[1763282777102,1.71341747,142.1,142.07,15.9865784]
[1763282777301,0.65,142.09,142.07,15.9865784]
[1763282778079,0.65,142.09,142.07,7.03878369]
[1763282778508,0.65,142.09,142.07,14.07518699]
[1763282780205,0.65,142.09,142.07,7.03878369]
[1763282782706,2.36341747,142.09,142.06,22.6512]
[1763282782902,1.71341747,142.07,141.99,62.51]
[1763282783201,1.71341747,142.03,141.99,0.71]
[1763282783407,1.71341747,142.03,142.0,9.78882769]
[1763282783605,2.28341747,142.03,142.0,9.78882769]
[1763282783781,2.28341747,142.02,141.98,7.85307499]
[1763282784119,1.71341747,142.0,141.98,0.1]
[1763282784308,2.28341747,142.01,141.98,7.14306205]
[1763282784704,2.28341747,142.01,141.98,7.85306205]
[1763282785106,1.71341747,142.01,141.98,7.85306205]
[1763282785309,2.28341747,142.02,141.98,7.85306205]
[1763282786223,2.28341747,142.04,141.99,12.21224516]
[1763282786422,1.71341747,142.04,141.99,12.21224516]
[1763282786724,0.57,142.05,142.0,2.42341747]
[1763282786921,0.57,142.05,142.0,1.71341747]
[1763282787223,2.28341747,142.07,142.02,11.50224516]
[1763282787597,2.28341747,142.07,142.03,0.71]
[1763282788320,0.57,142.06,142.03,7.750376]
[1763282788492,2.28341747,142.06,142.03,7.040376]
[1763282788691,1.71341747,142.05,142.02,16.82998587]
[1763282788931,0.57,142.05,142.02,16.82998587]
[1763282789097,0.57,142.05,142.02,17.53998587]
[1763282791599,2.28341747,142.09,142.05,9.78882769]
[1763282791807,2.28341747,142.1,142.05,11.50224516]
[1763282792032,0.57,142.09,142.06,0.71]
[1763282792228,0.57,142.09,142.05,11.50224516]
[1763282792413,0.57,142.09,142.06,0.71]
[1763282792907,0.57,142.09,142.05,19.25170442]
[1763282793302,8.75085746,142.1,142.05,18.54170442]
[1763282793518,9.32085746,142.1,142.06,0.71]
[1763282793727,7.60743999,142.1,142.06,0.71]
[1763282793920,9.32085746,142.1,142.06,0.71]
[1763282794405,9.32085746,142.1,142.06,7.74895762]
[1763282794714,8.75085746,142.1,142.06,0.71]
[1763282794912,9.32085746,142.1,142.06,0.71]
[1763282795226,2.28341747,142.1,142.06,9.46262048]
[1763282795402,0.57,142.1,142.06,9.46262048]
[1763282796008,2.28341747,142.1,142.06,9.46262048]
[1763282797116,2.28341747,142.1,142.06,7.74920301]
[1763282797446,2.28341747,142.1,142.06,9.46262048]
[1763282798322,2.28341747,142.1,142.06,7.74920301]
[1763282799349,7.03692472,142.11,142.06,7.74920301]
[1763282799518,7.60609569,142.13,142.07,12.21224516]
[1763282799718,0.57,142.13,142.08,1.71341747]
[1763282799918,1.71341747,142.12,142.08,2.42341747]
[1763282800418,2.28341747,142.12,142.08,2.42341747]
[1763282801033,1.71341747,142.11,142.07,9.78882769]
[1763282801235,1.71341747,142.1,142.06,25.34740095]
[1763282801435,2.28341747,142.1,142.06,25.34740095]
[1763282803157,9.32077513,142.1,142.06,7.74920301]
[1763282803331,8.75077513,142.1,142.06,7.74920301]
[1763282803527,2.28341747,142.09,142.06,7.74920301]
[1763282803753,9.32077513,142.1,142.06,7.74920301]
[1763282804951,2.28341747,142.1,142.06,7.74920301]
[1763282805835,2.28341747,142.1,142.06,9.46262048]
[1763282806038,2.28341747,142.1,142.06,8.75262048]
[1763282806228,2.28341747,142.1,142.07,0.69]
[1763282806746,0.57,142.1,142.07,0.69]
[1763282806933,2.28341747,142.1,142.07,0.69]
[1763282808967,0.57,142.1,142.07,7.72862167]
[1763282809118,8.75044343,142.11,142.07,7.72862167]
[1763282809323,0.57,142.1,142.07,7.72862167]
[1763282810151,8.75044343,142.11,142.07,7.72862167]
[1763282810392,1.71341747,142.12,142.08,12.19224516]
[1763282810733,9.3194688,142.13,142.09,0.69]
[1763282811130,0.57,142.12,142.09,0.69]
[1763282812058,2.28341747,142.12,142.09,0.69]
[1763282812438,127.6212,142.14,142.09,7.72757078]
[1763282812759,113.71880049,142.14,142.09,9.44098825]
[1763282812973,113.71880049,142.14,142.1,0.69]
[1763282813251,106.68341747,142.14,142.1,0.69]
[1763282813632,113.71882966,142.14,142.1,0.69]
[1763282814978,9.51882966,142.14,142.1,7.72696675]
[1763282815290,9.51882966,142.14,142.11,0.69]
[1763282815494,9.51882966,142.14,142.1,0.69]
[1763282815792,2.48341747,142.14,142.09,1.71341747]
[1763282816090,2.48341747,142.14,142.11,0.69]
[1763282816463,9.51877105,142.14,142.1,0.69]
[1763282816986,9.51877105,142.14,142.1,7.72701314]
[1763282817286,9.51877105,142.14,142.1,0.69]
[1763282818099,9.51877105,142.14,142.1,7.72723836]
[1763282818268,9.51877105,142.14,142.11,0.69]
[1763282818797,9.51877105,142.14,142.1,7.03723836]
[1763282818965,9.51877105,142.14,142.1,7.72723836]
[1763282819469,8.94877105,142.14,142.11,7.7267376]
[1763282819665,1.91341747,142.14,142.11,7.7267376]
[1763282820999,0.2,142.14,142.12,0.69]
[1763282821572,0.2,142.14,142.12,7.72590776]
[1763282821972,0.2,142.14,142.13,0.69]
[1763282823677,0.2,142.14,142.13,7.72581228]
[1763282824382,0.2,142.14,142.13,0.69]
[1763282825199,0.2,142.14,142.13,7.72581228]
[1763282826889,0.2,142.14,142.12,7.03624129]
[1763282827087,0.2,142.14,142.12,7.72624129]
[1763282828095,0.2,142.14,142.12,0.69]
[1763282828300,0.2,142.14,142.12,7.72627764]
[1763282828671,0.57,142.13,142.09,27.80162412]
[1763282828870,2.67852922,142.13,142.1,17.51588467]
[1763282829087,3.44852922,142.14,142.1,17.51588467]
[1763282829298,3.44852922,142.14,142.11,0.69]
[1763282830300,3.44852922,142.14,142.11,7.7266889]
[1763282830900,2.67852922,142.13,142.11,7.7266889]
[1763282831582,2.67852922,142.13,142.1,16.82589729]
[1763282831793,2.67852922,142.13,142.1,17.51589729]
[1763282832568,2.67852922,142.13,142.11,0.69]
[1763282835182,2.67852922,142.13,142.1,17.52589729]
[1763282835501,2.67852922,142.12,142.09,22.6512]
[1763282835707,2.67852922,142.11,142.09,22.6512]
[1763282835891,2.67852922,142.11,142.1,0.7]
[1763282836091,7.80542018,142.14,142.1,0.7]
[1763282836292,2.67852922,142.12,142.1,0.7]
[1763282836804,9.71451988,142.13,142.1,0.7]
[1763282837005,10.28451988,142.13,142.1,0.7]
[1763282838207,2.67852922,142.11,142.08,16.82698247]
[1763282838604,2.67852922,142.1,142.07,30.3897911]
[1763282838912,3.24852922,142.1,142.07,7.73876673]
[1763282839113,2.67852922,142.1,142.07,7.73876673]
[1763282839905,9.71583926,142.1,142.07,0.7]
[1763282841420,9.71583926,142.1,142.07,7.73875282]
[1763282842511,9.71583926,142.1,142.07,7.03875282]
[1763282842833,9.71583926,142.1,142.08,0.7]
[1763282843524,2.67852922,142.1,142.08,0.7]
[1763282847636,2.67852922,142.1,142.07,24.62828353]
[1763282847812,2.67852922,142.1,142.08,0.7]
[1763282852141,2.67852922,142.1,142.08,7.7382386]
[1763282852342,10.28540595,142.11,142.08,7.7382386]
[1763282853342,10.28540595,142.11,142.08,0.7]
[1763282854340,104.4,142.14,142.08,10.41679386]
[1763282854546,0.2,142.14,142.1,2.67852922]
[1763282854938,0.2,142.14,142.11,0.7]
[1763282855438,9.9140679,142.14,142.11,0.7]
[1763282855849,10.4840679,142.14,142.11,0.7]
[1763282856930,9.9140679,142.14,142.11,0.7]
[1763282858146,10.4840679,142.14,142.11,7.73679285]
[1763282858525,9.91395854,142.14,142.11,7.73676133]
[1763282858846,10.48395854,142.14,142.11,7.73676133]
[1763282859846,10.48395854,142.14,142.11,0.7]
[1763282860644,9.91395854,142.14,142.11,7.73679155]
[1763282860948,10.48395854,142.14,142.11,7.73679155]
[1763282862945,2.67852922,142.13,142.11,0.7]
[1763282863527,2.67852922,142.13,142.1,21.03632614]
[1763282863737,2.67852922,142.13,142.09,16.82619057]
[1763282863932,2.67852922,142.13,142.1,7.23542932]
[1763282864155,2.67852922,142.11,142.06,10.48882769]
[1763282864344,2.67852922,142.09,142.07,0.7]
[1763282864529,2.67852922,142.08,142.06,7.93542932]
[1763282864842,2.67852922,142.08,142.06,0.7]
[1763282865535,2.67852922,142.08,142.05,0.7]
[1763282866251,9.71684679,142.08,142.05,0.7]
[1763282866554,2.67852922,142.08,142.05,0.7]
[1763282867052,7.60802465,142.09,142.05,7.73942135]
[1763282867248,2.67852922,142.08,142.05,7.73942135]
[1763282867448,2.67852922,142.08,142.06,0.7]
[1763282868355,2.67852922,142.07,142.06,0.7]
[1763282868731,2.67852922,142.08,142.06,0.7]
[1763282869051,2.67852922,142.1,142.06,20.20648181]
[1763282869238,2.67852922,142.1,142.07,7.03737885]
[1763282869441,2.67852922,142.1,142.07,7.73737885]
[1763282869635,7.03581228,142.13,142.08,0.7]
[1763282869839,2.67852922,142.12,142.08,0.7]
[1763282870035,2.67852922,142.11,142.08,0.7]
[1763282870458,2.67852922,142.11,142.08,7.73825162]
[1763282870626,2.67852922,142.1,142.08,7.73581228]
[1763282870828,2.67852922,142.1,142.06,32.44002769]
[1763282870829,2.67852922,142.09,142.06,32.44002769]
[1763282871034,2.67852922,142.09,142.07,0.7]
[1763282872046,3.24852922,142.09,142.06,50.03006997]
[1763282872248,3.24852922,142.09,142.06,50.73006997]
[1763282872249,2.67852922,142.08,142.06,50.73006997]
[1763282872856,2.67852922,142.08,142.06,35.11810191]
[1763282873255,2.67852922,142.08,142.06,34.41810191]
[1763282873558,2.67852922,142.08,142.07,0.7]
[1763282874176,2.67852922,142.09,142.07,0.7]
[1763282875058,2.67852922,142.08,142.05,7.03974277]
[1763282875365,2.67852922,142.08,142.05,24.63130501]
[1763282875569,2.67852922,142.08,142.06,0.7]
[1763282876449,2.67852922,142.07,142.04,25.33233709]
[1763282877259,3.24852922,142.07,142.04,25.33233709]
[1763282878001,2.67852922,142.07,142.05,0.7]
[1763282878675,2.67852922,142.07,142.05,7.73797428]
[1763282878862,2.67852922,142.07,142.05,0.7]
[1763282879662,10.28686432,142.08,142.05,0.7]
[1763282880065,9.71686432,142.08,142.05,0.7]
[1763282880692,9.71652219,142.09,142.05,7.73969972]
[1763282880984,9.71604003,142.1,142.06,2.67852922]
[1763282881155,9.71604003,142.1,142.06,0.7]
[1763282881349,10.28604003,142.1,142.07,0.7]
[1763282881592,3.24852922,142.09,142.05,18.29381469]
[1763282881754,7.60826353,142.09,142.05,0.7]
[1763282881959,2.67852922,142.08,142.05,7.73977297]
[1763282882669,2.67852922,142.08,142.06,0.7]
[1763282884865,2.67852922,142.08,142.05,7.03977297]
[1763282884866,9.71693618,142.08,142.05,7.03977297]
[1763282885185,2.67852922,142.07,142.04,25.33290268]
[1763282885368,2.67852922,142.07,142.05,0.7]
[1763282885871,2.67852922,142.06,142.03,30.39179853]
[1763282886079,2.67852922,142.06,142.04,0.7]
[1763282888678,9.71753121,142.07,142.04,7.74019877]
[1763282888984,7.03900199,142.07,142.04,7.74019877]
[1763282889192,7.03900199,142.07,142.04,0.7]
[1763282889695,7.03900199,142.07,142.03,27.31477157]
[1763282889865,7.03900199,142.07,142.04,0.7]
[1763282890067,7.60900199,142.07,142.04,0.7]
[1763282890281,7.03900199,142.07,142.04,0.7]
[1763282891689,8.75460899,142.07,142.04,0.7]
[1763282892580,7.60680247,142.11,142.04,9.45581477]
[1763282892776,7.60680247,142.11,142.06,1.715607]
[1763282892777,8.75240947,142.11,142.06,1.715607]
[1763282892977,8.75240947,142.11,142.07,0.7]
[1763282893400,9.32240947,142.11,142.07,0.7]
[1763282893601,9.32240947,142.11,142.07,21.84537444]
[1763282893783,7.60680247,142.11,142.07,28.88397519]
[1763282893986,7.60680247,142.11,142.08,0.71]
[1763282894168,9.32240947,142.11,142.08,0.71]
[1763282894373,7.03680247,142.11,142.08,0.71]
[1763282895013,8.75240947,142.11,142.08,0.71]
[1763282896116,0.57,142.1,142.07,21.85537444]
[1763282896276,0.57,142.1,142.07,0.71]
[1763282898201,9.32304635,142.1,142.07,0.71]
[1763282898499,8.75304635,142.1,142.07,0.71]
[1763282898697,8.75304635,142.1,142.07,7.74869617]
[1763282899221,8.75304635,142.1,142.07,21.85537444]
[1763282900807,1.715607,142.1,142.08,0.71]
[1763282901003,1.715607,142.12,142.08,0.71]
[1763282901180,1.715607,142.12,142.09,21.14239402]
[1763282901501,7.03654806,142.12,142.09,21.14239402]
[1763282901689,7.03654806,142.12,142.1,0.71]
[1763282901884,8.75215506,142.12,142.09,21.14239402]
[1763282902091,7.03654806,142.12,142.1,0.71]
[1763282902684,7.03654806,142.12,142.1,7.74654806]
[1763282903104,8.75215506,142.12,142.1,7.74654806]
[1763282903503,1.715607,142.12,142.1,7.74654806]
[1763282904406,0.2,142.14,142.11,0.71]
[1763282904581,1.715607,142.13,142.11,0.71]
[1763282905093,8.95113024,142.14,142.11,0.71]
[1763282905295,0.2,142.14,142.11,9.46225415]
[1763282905604,0.2,142.14,142.12,14.07381063]
[1763282905798,0.2,142.14,142.12,14.78381063]
[1763282906001,0.2,142.14,142.13,0.71]
[1763282912613,0.2,142.14,142.13,7.74581228]
[1763282913688,0.2,142.14,142.13,0.71]
[1763282916715,0.2,142.14,142.13,7.74581228]
[1763282917121,0.2,142.14,142.13,15.55014369]
[1763282918120,0.2,142.14,142.13,7.74581228]
[1763282918498,2.485607,142.14,142.13,2.81819142]
[1763282918711,9.52092429,142.14,142.09,7.74749001]
[1763282918907,1.715607,142.12,142.09,10.5660786]
[1763282919620,1.715607,142.11,142.09,9.8560786]
[1763282919802,1.715607,142.11,142.1,0.71]
[1763282919996,1.715607,142.11,142.08,17.53690502]
[1763282920191,2.285607,142.11,142.08,25.14331453]
[1763282920614,1.715607,142.11,142.08,25.14331453]
[1763282920809,1.715607,142.09,142.07,0.71]
[1763282921013,1.715607,142.1,142.08,0.71]
[1763282922805,1.715607,142.11,142.08,7.74823574]
[1763282924136,1.715607,142.11,142.08,0.71]
[1763282924435,1.715607,142.11,142.08,7.74827804]
[1763282924724,1.715607,142.11,142.08,0.71]
[1763282926216,1.715607,142.11,142.08,7.74825622]
[1763282928705,2.285607,142.11,142.08,7.74825622]
[1763282929125,9.32245026,142.11,142.08,7.74825622]
[1763282929427,8.75245026,142.11,142.08,0.71]
[1763282932429,7.03684326,142.11,142.08,0.71]
[1763282932613,8.75245026,142.11,142.08,0.71]
[1763282937929,8.75245026,142.11,142.08,7.74816229]
[1763282938131,1.715607,142.13,142.09,2.405607]
[1763282938310,106.115607,142.14,142.1,0.69]
[1763282939019,106.685607,142.14,142.1,0.69]
[1763282939635,113.72115802,142.14,142.1,0.69]
[1763282940234,1.715607,142.13,142.1,0.69]
[1763282941420,2.285607,142.12,142.08,31.61973181]
[1763282941617,2.285607,142.12,142.09,0.69]
[1763282941807,1.715607,142.12,142.09,0.69]
[1763282942029,2.285607,142.12,142.09,0.69]
[1763282942211,8.75191792,142.12,142.09,0.69]
[1763282942726,1.715607,142.1,142.07,0.69]
[1763282942924,1.715607,142.08,142.06,23.3412]
[1763282943124,1.715607,142.08,142.05,7.72946004]
[1763282943325,1.715607,142.07,142.06,21.14388413]
[1763282943727,1.715607,142.07,142.05,0.69]
[1763282944641,9.32440218,142.07,142.04,17.59396405]
[1763282944842,1.715607,142.07,142.04,0.69]
[1763282945154,1.715607,142.08,142.05,0.69]
[1763282945821,1.715607,142.08,142.05,7.72971607]
[1763282946026,8.75302638,142.1,142.05,9.44532307]
[1763282946226,7.03741938,142.1,142.06,2.405607]
[1763282946536,7.03741938,142.1,142.06,19.99816636]
[1763282946840,7.03741938,142.1,142.07,0.69]
[1763282947214,8.75256529,142.11,142.07,0.69]
[1763282948035,8.75256529,142.11,142.07,7.72852798]
[1763282948233,8.75256529,142.11,142.08,0.69]
[1763282950848,1.715607,142.11,142.08,0.69]
[1763282951613,8.75239428,142.12,142.08,7.72821811]
[1763282951818,1.715607,142.13,142.08,27.03404766]
[1763282952047,1.715607,142.13,142.09,2.405607]
[1763282952543,1.715607,142.13,142.1,0.69]
[1763282952845,2.67857676,142.13,142.1,7.72721997]
[1763282953154,2.67857676,142.13,142.11,0.69]
[1763282955147,2.87857676,142.14,142.11,7.7268015]
[1763282955316,0.2,142.14,142.11,7.72659701]
[1763282955649,0.2,142.14,142.12,0.7]
[1763282956327,0.2,142.14,142.12,4.14857676]
[1763282956527,0.2,142.14,142.12,11.18457963]
[1763282956847,0.2,142.14,142.13,0.7]
[1763282959953,0.2,142.14,142.13,7.73581228]
[1763282961445,0.2,142.14,142.13,14.97042461]
[1763282961753,0.2,142.14,142.13,0.7]
[1763282973369,7.80532112,142.14,142.12,7.23461233]
[1763282973669,2.67857676,142.13,142.09,10.48882769]
[1763282973846,2.67857676,142.12,142.1,0.7]
[1763282976982,9.71485253,142.13,142.1,0.7]
[1763282977553,7.03627577,142.13,142.1,0.7]
[1763282977868,0.2,142.14,142.12,2.67857676]
[1763282978285,0.2,142.14,142.13,0.7]
[1763282981588,0.2,142.14,142.13,7.73581228]
[1763282982275,0.2,142.14,142.13,0.7]
[1763282984965,0.2,142.14,142.13,10.41438904]
[1763282985161,0.2,142.14,142.13,52.76732527]
[1763282988165,0.2,142.14,142.13,50.08874851]
[1763282988474,0.2,142.14,142.13,52.76732527]
[1763282988984,0.2,142.14,142.13,40.29992082]
[1763282990766,0.2,142.14,142.13,42.97849758]
[1763282991185,0.2,142.14,142.13,52.76732527]
[1763282998597,0.2,142.14,142.13,30.11612527]
[1763283000794,0.2,142.15,142.14,35.11860445]
[1763283001076,0.2,142.15,142.14,35.83860445]
[1763283001501,0.2,142.15,142.14,38.65560504]
[1763283002103,0.77,142.15,142.14,2.81700059]
[1763283002271,0.2,142.15,142.12,7.75607579]
[1763283002469,0.2,142.15,142.13,0.72]
[1763283002690,0.2,142.15,142.13,3.39857676]
[1763283003075,0.2,142.15,142.13,3.53799288]
[1763283003281,0.2,142.15,142.13,6.21656964]
[1763283004369,0.2,142.15,142.14,7.03531729]
[1763283004796,0.2,142.15,142.14,9.85311166]
[1763283004991,0.2,142.15,142.14,23.04051611]
[1763283006609,0.2,142.15,142.14,20.36193935]
[1763283011912,0.2,142.15,142.14,23.04051611]
[1763283012916,0.2,142.15,142.14,22.07481416]
[1763283014918,0.2,142.15,142.14,23.78768897]
[1763283015107,0.2,142.15,142.14,46.43888897]
[1763283015417,0.2,142.15,142.14,44.72601416]
[1763283016224,0.2,142.15,142.14,43.01313935]
[1763283016518,0.2,142.15,142.14,44.72601416]
[1763283020323,0.2,142.15,142.14,46.43888897]
[1763283021117,0.2,142.15,142.14,44.72601416]
[1763283025027,0.2,142.15,142.14,43.01313935]
[1763283025224,0.2,142.15,142.14,44.72601416]
[1763283025926,0.2,142.19,142.18,32.44002769]
[1763283026128,0.2,142.19,142.18,34.8229025]
[1763283026505,0.2,142.19,142.18,37.63910977]
[1763283027426,0.2,142.19,142.18,44.67244779]
[1763283028030,0.2,142.2,142.19,9.78882769]
[1763283028211,0.2,142.2,142.19,34.97044684]
[1763283028413,0.2,142.2,142.19,13.88457731]
[1763283028616,0.2,142.2,142.19,16.70078458]
[1763283028816,0.2,142.2,142.19,14.98790977]
[1763283029533,0.2,142.2,142.19,22.02075314]
[1763283030237,0.2,142.2,142.19,23.73362795]
[1763283032626,0.2,142.2,142.19,44.83215786]
[1763283032809,0.2,142.24,142.21,22.6512]
[1763283033010,0.2,142.24,142.21,25.03407481]
[1763283033431,0.2,142.24,142.21,27.85008382]
[1763283034712,0.2,142.24,142.21,34.88193811]
[1763283035921,0.2,142.24,142.21,44.6707658]
[1763283036313,0.2,142.24,142.21,12.6048367]
[1763283036526,0.77,142.22,142.21,19.63669099]
[1763283037113,0.2,142.22,142.21,12.6048367]
[1763283037334,0.77,142.22,142.19,43.74972991]
[1763283037638,0.77,142.22,142.2,1.71287481]
[1763283037833,0.77,142.22,142.19,52.49527748]
[1763283038225,0.77,142.22,142.19,59.72580517]
[1763283038443,0.77,142.22,142.19,52.49527748]
[1763283038619,0.77,142.22,142.2,7.23052769]
[1763283039325,0.77,142.22,142.2,14.26257349]
[1763283041144,0.77,142.22,142.2,7.0320458]
[1763283041945,0.77,142.22,142.19,61.43866978]
[1763283042139,0.57,142.21,142.19,31.5946025]
[1763283042435,0.57,142.21,142.16,18.25575617]
[1763283042436,0.57,142.21,142.17,10.6571268]
[1763283042616,0.57,142.21,142.17,11.3271268]
[1763283043542,0.57,142.21,142.17,18.36067282]
[1763283044237,0.57,142.21,142.17,39.49593658]
[1763283046631,0.57,142.21,142.18,1.71287481]
[1763283047947,0.57,142.21,142.18,8.7460149]
[1763283048238,7.23137718,142.22,142.18,8.7460149]
[1763283048442,9.51425199,142.22,142.18,9.4560149]
[1763283048739,0.57,142.21,142.18,9.4560149]
[1763283052328,0.57,142.21,142.18,16.4870365]
[1763283053161,7.60190273,142.21,142.18,7.7410216]
[1763283053451,0.57,142.21,142.18,9.4560655]
[1763283055553,0.57,142.21,142.18,1.71287481]
[1763283055849,7.60186886,142.21,142.18,7.03329198]
[1763283056033,7.60186886,142.21,142.17,48.3682766]
[1763283056356,7.60186886,142.21,142.18,0.71]
[1763283056949,0.57,142.21,142.18,0.71]
[1763283057341,0.57,142.21,142.18,2.42287481]
[1763283058139,0.57,142.21,142.18,9.45588857]
[1763283062561,9.31475413,142.21,142.17,38.91181222]
[1763283062853,9.31475413,142.21,142.17,39.62181222]
[1763283063027,0.57,142.2,142.17,41.33468703]
[1763283064548,0.57,142.2,142.17,48.36840859]
[1763283064750,7.60187932,142.21,142.17,48.36840859]
[1763283064945,7.60248223,142.2,142.17,21.13526376]
[1763283065137,9.31535704,142.2,142.16,40.18425435]
[1763283065350,9.31535704,142.2,142.16,57.76185119]
[1763283065928,2.28287481,142.19,142.16,17.57759684]
[1763283066132,1.71287481,142.18,142.15,7.03462858]
[1763283066444,2.28287481,142.18,142.15,45.97251014]
[1763283067154,0.57,142.17,142.15,17.58013574]
[1763283067326,0.57,142.17,142.14,39.47512058]
[1763283067531,0.57,142.17,142.14,57.05525632]
[1763283069253,9.31681115,142.17,142.13,28.66869264]
[1763283069559,9.31681115,142.17,142.13,46.96006679]
[1763283069756,0.57,142.16,142.13,46.96006679]
[1763283070154,17.58260113,142.19,142.13,46.96006679]
[1763283070155,8.74643282,142.18,142.13,47.9629416]
[1763283070369,9.31643282,142.18,142.14,0.71]
[1763283070537,0.57,142.17,142.14,0.71]
[1763283071462,0.57,142.17,142.13,66.26247231]
[1763283073143,0.57,142.17,142.13,44.62940794]
[1763283074581,0.57,142.17,142.13,43.91940794]
[1763283074885,0.57,142.17,142.14,0.71]
[1763283075259,9.71029432,142.18,142.14,0.71]
[1763283075462,111.23191544,142.21,142.17,9.71011561]
[1763283075672,111.23191544,142.21,142.18,0.71]
[1763283076185,0.57,142.21,142.18,3.38673631]
[1763283076385,7.23156526,142.22,142.18,3.38673631]
[1763283076695,7.80156526,142.22,142.19,0.71]
[1763283077560,7.80156526,142.22,142.18,10.41988348]
[1763283078198,7.80156526,142.22,142.19,0.71]
[1763283078399,7.23156526,142.22,142.19,7.74281607]
[1763283078980,7.80156526,142.22,142.19,7.74281607]
[1763283079383,0.2,142.22,142.2,0.71]
[1763283080388,7.0323488,142.2,142.16,23.3612]
[1763283080684,9.70908511,142.2,142.16,7.74430509]
[1763283080865,2.67673631,142.19,142.16,7.74430509]
[1763283081065,2.67673631,142.19,142.16,17.45191682]
[1763283081665,2.67673631,142.19,142.16,7.74430509]
[1763283081864,2.67673631,142.19,142.17,17.77839966]
[1763283082584,3.24673631,142.18,142.17,17.77839966]
[1763283086593,3.24673631,142.18,142.15,30.3959737]
[1763283086895,3.24673631,142.18,142.16,17.77889388]
[1763283087279,2.67673631,142.18,142.16,17.77889388]
[1763283088109,10.2796911,142.19,142.16,18.48889388]
[1763283088391,3.24673631,142.19,142.16,18.48889388]
[1763283088577,3.24673631,142.19,142.16,7.74404343]
[1763283088769,3.24673631,142.19,142.17,17.58018198]
[1763283088978,2.67673631,142.19,142.17,17.58018198]
[1763283089183,9.70928273,142.2,142.18,0.71]
[1763283089774,9.70928273,142.2,142.17,18.29018198]
[1763283090084,2.67673631,142.2,142.17,18.29018198]
[1763283090397,3.44673631,142.22,142.18,0.71]
[1763283090583,3.44673631,142.22,142.19,7.03284337]
[1763283091281,3.44673631,142.22,142.19,28.00372337]
[1763283092678,0.2,142.22,142.2,0.71]
[1763283092904,0.2,142.22,142.21,35.116764]
[1763283093275,0.2,142.22,142.21,35.826764]
[1763283093475,0.2,142.22,142.21,38.64277301]
[1763283094709,0.2,142.22,142.21,45.6746273]
[1763283095923,0.2,142.22,142.21,42.99789099]
[1763283096112,0.2,142.22,142.21,45.6746273]
[1763283096622,0.2,142.22,142.21,35.9660367]
[1763283096914,0.2,142.22,142.21,45.6746273]
[1763283098320,0.2,142.22,142.21,42.99789099]
[1763283099308,0.2,142.22,142.21,26.17720901]